fUST/lending_fUST_20240227
["ID","MTS","AMOUNT","RATE_DAILY","PERIOD"]
[315419694,1709022641396,-317.207108,0.00019452,2]
[315419695,1709022641406,-302.1536889,0.00019452,2]
[315419696,1709022641415,-500.0,0.00019452,2]
[315419697,1709022641424,-500.0,0.00019452,2]
[315419698,1709022641434,-500.0,0.00019452,2]
[315419699,1709022641443,-500.0,0.00019452,2]
[315419700,1709022641452,-888.06,0.00019452,2]
[315419701,1709022641461,-500.0,0.00019452,2]
[315419702,1709022641470,-8583.96,0.00019452,2]
[315419703,1709022641479,-698.08,0.00019452,2]
[315419704,1709022641488,-500.0,0.00019452,2]
[315419705,1709022641498,-500.0,0.00019452,2]
[315419706,1709022641507,-1009.32,0.00019452,2]
[315419707,1709022641516,-3472.0,0.00019452,2]
[315419708,1709022641525,-501.97109407,0.00019452,2]
[315419709,1709022641534,-500.0,0.00019452,2]
[315419710,1709022641543,-500.0,0.00019452,2]
[315419711,1709022641552,-699.06,0.00019452,2]
[315419712,1709022641561,-500.0,0.00019452,2]
[315419713,1709022641570,-500.0,0.00019452,2]
[315419714,1709022641579,-152.09589941,0.00019452,2]
[315419715,1709022641588,-500.0,0.00019452,2]
[315419716,1709022641597,-1243.04,0.00019452,2]
[315419717,1709022641607,-1332.48,0.00019452,2]
[315419718,1709022641616,-500.0,0.00019452,2]
[315419719,1709022641626,-500.0,0.00019452,2]
[315419720,1709022641634,-2283.23,0.00019452,2]
[315419721,1709022641643,-500.0,0.00019452,2]
[315419722,1709022641653,-500.0,0.00019452,2]
[315419723,1709022641662,-6397.75,0.00019452,2]
[315419724,1709022641671,-500.71978356,0.00019452,2]
[315419725,1709022641680,-2330.2,0.00019452,2]
[315419726,1709022641690,-500.0,0.00019452,2]
[315419727,1709022641701,-4470.27,0.00019452,2]
[315419728,1709022641710,-500.0,0.00019452,2]
[315419729,1709022641720,-617.39,0.00019452,2]
[315419730,1709022641731,-500.0,0.00019452,2]
[315419731,1709022641741,-17889.54,0.00019452,2]
[315419732,1709022641750,-1278.36,0.00019452,2]
[315419733,1709022641759,-500.0,0.00019452,2]
[315419734,1709022641769,-491.01392198,0.00019452,2]
[315419735,1709022641779,-1841.49,0.00019452,2]
[315419736,1709022641791,-502.56998248,0.00019452,2]
[315419737,1709022641800,-1002.42085392,0.00019452,2]
[315419738,1709022641809,-3413.81,0.00019452,2]
[315419739,1709022641818,-581.55260075,0.00019452,2]
[315419740,1709022641830,-1776.29,0.00019452,2]
[315419741,1709022641839,-500.0,0.00019452,2]
[315419742,1709022641849,-500.0,0.00019452,2]
[315419743,1709022641859,-1720.32,0.00019452,2]
[315419744,1709022641869,-2949.39,0.00019452,2]
[315419745,1709022641879,-500.0,0.00019452,2]
[315419746,1709022641889,-500.0,0.00019452,2]
[315419747,1709022641899,-500.0,0.00019452,2]
[315419748,1709022641908,-200.27457697,0.00019452,2]
[315419749,1709022641919,-500.0,0.00019452,2]
[315419750,1709022641929,-518.76,0.00019452,2]
[315419751,1709022641938,-500.0,0.00019452,2]
[315419752,1709022641949,-235.52195681,0.00019452,2]
[315419753,1709022641960,-500.0,0.00019452,2]
[315419754,1709022641969,-533.40617444,0.00019452,2]
[315419755,1709022641979,-226.05511992,0.00019452,2]
[315419756,1709022641988,-479.74109791,0.00019452,2]
[315419757,1709022641997,-500.0,0.00019452,2]
[315419758,1709022642006,-500.0,0.00019452,2]
[315419759,1709022642015,-623.92,0.00019452,2]
[315419760,1709022642024,-500.0,0.00019452,2]
[315419761,1709022642034,-369.62759187,0.00019452,2]
[315419762,1709022642043,-1449.59,0.00019452,2]
[315419763,1709022642052,-500.0,0.00019452,2]
[315419764,1709022642062,-1620.31,0.00019452,2]
[315419765,1709022642072,-1791.97,0.00019452,2]
[315419766,1709022642081,-500.0,0.00019452,2]
[315419767,1709022642090,-500.0,0.00019452,2]
[315419768,1709022642099,-710.28,0.00019452,2]
[315419769,1709022642109,-262.021544,0.00019452,2]
[315419770,1709022642119,-295.01720244,0.00019452,2]
[315419771,1709022642128,-500.0,0.00019452,2]
[315419772,1709022642137,-501.12415207,0.00019452,2]
[315419773,1709022642148,-17531.41,0.00019452,2]
[315419774,1709022642158,-306.0,0.00019478,2]
[315419775,1709022642168,-1167.39863426,0.00019489,2]
[315419776,1709022642178,-166.666666,0.00019627,2]
[315419777,1709022642188,-1167.39863426,0.00019695,2]
[315419778,1709022642198,-500.0,0.00019725,2]
[315419779,1709022642208,-500.0,0.00019725,2]
[315419780,1709022642217,-500.0,0.00019725,2]
[315419781,1709022642226,-500.0,0.00019725,2]
[315419782,1709022642235,-500.0,0.00019726,2]
[315419783,1709022642245,-500.0,0.00019726,2]
[315419784,1709022642254,-500.0,0.00019726,2]
[315419785,1709022642263,-513.26,0.00019726,2]
[315419786,1709022642352,-500.0,0.00019726,2]
[315419787,1709022642375,-525.27752141,0.00019726,2]
[315419788,1709022642384,-577.97,0.00019726,2]
[315419789,1709022642394,-500.0,0.00019726,2]
[315419790,1709022642404,-231.23191091,0.00019726,2]
[315419791,1709022642416,-563.69,0.00019726,2]
[315419792,1709022642425,-500.0,0.00019726,2]
[315419793,1709022642435,-500.0,0.00019726,2]
[315419794,1709022642443,-3247.0,0.00019726,2]
[315419795,1709022642452,-1384.19,0.00019726,2]
[315419796,1709022642463,-500.0,0.00019726,2]
[315419797,1709022642472,-2319.22,0.00019726,2]
[315419798,1709022642481,-1261.81,0.00019726,2]
[315419799,1709022642489,-548.95221423,0.00019726,2]
[315419800,1709022642499,-777.54,0.00019726,2]
[315419801,1709022642508,-500.0,0.00019726,2]
[315419802,1709022642517,-756.02,0.00019726,2]
[315419803,1709022642526,-500.0,0.00019726,2]
[315419804,1709022642535,-500.0,0.00019726,2]
[315419805,1709022642544,-333.04255885,0.00019726,2]
[315419806,1709022642553,-500.0,0.00019726,2]
[315419807,1709022642563,-500.0,0.00019726,2]
[315419808,1709022642573,-500.0,0.00019726,2]
[315419809,1709022642583,-500.0,0.00019726,2]
[315419810,1709022642595,-500.0,0.00019726,2]
[315419811,1709022642606,-1378.68,0.00019726,2]
[315419812,1709022642615,-500.0,0.00019726,2]
[315419813,1709022642628,-1638.43,0.00019726,2]
[315419814,1709022642638,-500.0,0.00019726,2]
[315419815,1709022642648,-500.0,0.00019726,2]
[315419816,1709022642658,-500.0,0.00019726,2]
[315419817,1709022642668,-1491.06,0.00019726,2]
[315419818,1709022642678,-551.18,0.00019726,2]
[315419819,1709022642688,-500.0,0.00019726,2]
[315419820,1709022642698,-500.0,0.00019726,2]
[315419821,1709022642708,-382.1661985,0.00019726,2]
[315419822,1709022642718,-500.0,0.00019726,2]
[315419823,1709022642729,-311.25723657,0.00019726,2]
[315419824,1709022642738,-881.44,0.00019726,2]
[315419825,1709022642747,-500.0,0.00019726,2]
[315419826,1709022642756,-500.0,0.00019726,2]
[315419827,1709022642765,-500.0,0.00019726,2]
[315419828,1709022642775,-500.0,0.00019726,2]
[315419829,1709022642785,-169.21456967,0.00019726,2]
[315419830,1709022642801,-500.0,0.00019726,2]
[315419831,1709022642812,-398.21029264,0.00019726,2]
[315419832,1709022642823,-500.0,0.00019726,2]
[315419833,1709022642832,-517.68,0.00019726,2]
[315419834,1709022642841,-500.0,0.00019726,2]
[315419835,1709022642851,-888.06,0.00019726,2]
[315419836,1709022642860,-8583.96,0.00019726,2]
[315419837,1709022642871,-698.08,0.00019726,2]
[315419838,1709022642880,-500.0,0.00019726,2]
[315419839,1709022642889,-500.0,0.00019726,2]
[315419840,1709022642899,-1009.32,0.00019726,2]
[315419841,1709022642908,-3472.0,0.00019726,2]
[315419842,1709022642917,-500.0,0.00019726,2]
[315419843,1709022642926,-500.0,0.00019726,2]
[315419844,1709022642935,-699.06,0.00019726,2]
[315419845,1709022642945,-500.0,0.00019726,2]
[315419846,1709022642954,-587.72307026,0.00019726,2]
[315419847,1709022642963,-502.32182453,0.00019726,2]
[315419848,1709022642972,-1243.04,0.00019726,2]
[315419849,1709022642982,-1332.48,0.00019726,2]
[315419850,1709022642991,-500.0,0.00019726,2]
[315419851,1709022643001,-2283.23,0.00019726,2]
[315419852,1709022643010,-500.0,0.00019726,2]
[315419853,1709022643021,-501.70867165,0.00019726,2]
[315419854,1709022643030,-6397.75,0.00019726,2]
[315419856,1709022643040,-2330.2,0.00019726,2]
[315419857,1709022643049,-4470.27,0.00019726,2]
[315419858,1709022643058,-500.0,0.00019726,2]
[315419860,1709022643067,-617.39,0.00019726,2]
[315419861,1709022643076,-500.0,0.00019726,2]
[315419862,1709022643086,-17889.54,0.00019726,2]
[315419863,1709022643095,-1278.36,0.00019726,2]
[315419865,1709022643105,-1841.49,0.00019726,2]
[315419866,1709022643114,-3413.81,0.00019726,2]
[315419867,1709022643127,-1776.29,0.00019726,2]
[315419868,1709022643137,-369.76023936,0.00019726,2]
[315419869,1709022643147,-500.0,0.00019726,2]
[315419870,1709022643157,-1720.32,0.00019726,2]
[315419872,1709022643167,-2949.39,0.00019726,2]
[315419874,1709022643176,-500.0,0.00019726,2]
[315419876,1709022643186,-500.0,0.00019726,2]
[315419878,1709022643197,-500.0,0.00019726,2]
[315419880,1709022643207,-518.76,0.00019726,2]
[315419882,1709022643217,-500.0,0.00019726,2]
[315419884,1709022643228,-500.0,0.00019726,2]
[315419886,1709022643238,-500.0,0.00019726,2]
[315419888,1709022643249,-500.0,0.00019726,2]
[315419890,1709022643259,-623.92,0.00019726,2]
[315419891,1709022643268,-500.0,0.00019726,2]
[315419892,1709022643278,-1449.59,0.00019726,2]
[315419893,1709022643287,-500.0,0.00019726,2]
[315419894,1709022643297,-1620.31,0.00019726,2]
[315419895,1709022643308,-1791.97,0.00019726,2]
[315419896,1709022643318,-500.0,0.00019726,2]
[315419897,1709022643328,-710.28,0.00019726,2]
[315419898,1709022643337,-500.0,0.00019726,2]
[315419899,1709022643347,-17531.41,0.00019726,2]
[315419900,1709022643358,-153.0,0.00019863,2]
[315419901,1709022643368,-1431.5433128,0.00019899,2]
[315419902,1709022643381,-1167.39863426,0.000199,2]
[315419903,1709022643390,-153.0,0.00019918,2]
[315419904,1709022643399,-153.0,0.00019918,2]
[315419905,1709022643409,-153.0,0.00019918,2]
[315419906,1709022643418,-153.0,0.00019918,2]
[315419907,1709022643427,-200.6117409,0.00019959,2]
[315419908,1709022643437,-201.1194807,0.00019959,2]
[315419909,1709022643446,-401.2234818,0.00019959,2]
[315419910,1709022643455,-500.0,0.00019999,2]
[315419911,1709022643464,-238.47583384,0.00019999,2]
[315419912,1709022643473,-552.59497447,0.00019999,2]
[315419913,1709022643482,-500.0,0.00019999,2]
[315419914,1709022643491,-500.0,0.00019999,2]
[315419915,1709022643500,-500.0,0.00019999,2]
[315419916,1709022643510,-500.0,0.00019999,2]
[315419917,1709022643519,-500.0,0.00019999,2]
[315419918,1709022643528,-500.0,0.00019999,2]
[315419919,1709022643537,-500.0,0.00019999,2]
[315419920,1709022643546,-500.0,0.00019999,2]
[315419921,1709022643556,-500.0,0.00019999,2]
[315419922,1709022643564,-500.0,0.00019999,2]
[315419923,1709022643574,-544.29732405,0.00019999,2]
[315419924,1709022643583,-500.0,0.00019999,2]
[315419925,1709022643592,-500.0,0.00019999,2]
[315419926,1709022643601,-500.0,0.00019999,2]
[315419927,1709022643611,-500.0,0.00019999,2]
[315419928,1709022643623,-500.0,0.00019999,2]
[315419929,1709022643632,-500.0,0.00019999,2]
[315419930,1709022643641,-555.33526355,0.00019999,2]
[315419931,1709022643650,-500.0,0.00019999,2]
[315419932,1709022643660,-500.0,0.00019999,2]
[315419933,1709022643669,-500.0,0.00019999,2]
[315419934,1709022643678,-448.55177378,0.00019999,2]
[315419935,1709022643687,-500.0,0.00019999,2]
[315419936,1709022643696,-500.0,0.00019999,2]
[315419937,1709022643706,-500.0,0.00019999,2]
[315419938,1709022643714,-500.0,0.00019999,2]
[315419939,1709022643723,-329.80280131,0.00019999,2]
[315419940,1709022643732,-500.0,0.00019999,2]
[315419941,1709022643741,-500.0,0.00019999,2]
[315419942,1709022643750,-500.0,0.00019999,2]
[315419943,1709022643760,-500.0,0.00019999,2]
[315419944,1709022643769,-500.0,0.00019999,2]
[315419945,1709022643779,-500.0,0.00019999,2]
[315419946,1709022643788,-500.0,0.00019999,2]
[315419947,1709022643800,-500.0,0.00019999,2]
[315419948,1709022643809,-500.0,0.00019999,2]
[315419949,1709022643818,-500.0,0.00019999,2]
[315419950,1709022643828,-500.0,0.00019999,2]
[315419951,1709022643838,-363.11393115,0.00019999,2]
[315419952,1709022643847,-500.0,0.00019999,2]
[315419953,1709022643856,-448.00443334,0.00019999,2]
[315419954,1709022643865,-500.0,0.00019999,2]
[315419955,1709022643878,-500.0,0.00019999,2]
[315419956,1709022643887,-326.32993225,0.00019999,2]
[315419957,1709022643896,-233.06091591,0.00019999,2]
[315419958,1709022643906,-500.0,0.00019999,2]
[315419959,1709022643914,-500.0,0.00019999,2]
[315419960,1709022643923,-500.0,0.00019999,2]
[315419961,1709022643933,-500.0,0.00019999,2]
[315419962,1709022643942,-476.85954565,0.00019999,2]
[315419963,1709022643951,-500.0,0.00019999,2]
[315419964,1709022643961,-500.0,0.00019999,2]
[315419965,1709022643971,-500.0,0.00019999,2]
[315419966,1709022643980,-500.0,0.00019999,2]
[315419967,1709022643989,-500.0,0.00019999,2]
[315419968,1709022643999,-500.0,0.00019999,2]
[315419969,1709022644009,-500.0,0.00019999,2]
[315419970,1709022644019,-500.0,0.00019999,2]
[315419971,1709022644028,-500.0,0.00019999,2]
[315419972,1709022644037,-500.0,0.00019999,2]
[315419973,1709022644047,-500.0,0.00019999,2]
[315419974,1709022644056,-500.0,0.00019999,2]
[315419975,1709022644066,-500.0,0.00019999,2]
[315419976,1709022644075,-500.0,0.00019999,2]
[315419977,1709022644085,-350.0,0.00019999,2]
[315419978,1709022644095,-500.0,0.00019999,2]
[315419979,1709022644104,-500.0,0.00019999,2]
[315419980,1709022644113,-500.0,0.00019999,2]
[315419981,1709022644125,-500.0,0.0002,2]
[315419982,1709022644134,-513.26,0.0002,2]
[315419983,1709022644143,-577.97,0.0002,2]
[315419984,1709022644153,-224.5571896,0.0002,2]
[315419985,1709022644163,-563.69,0.0002,2]
[315419986,1709022644172,-500.0,0.0002,2]
[315419987,1709022644181,-3247.0,0.0002,2]
[315419988,1709022644190,-1384.19,0.0002,2]
[315419989,1709022644199,-547.67624046,0.0002,2]
[315419990,1709022644208,-2319.22,0.0002,2]
[315419991,1709022644216,-1261.81,0.0002,2]
[315419992,1709022644225,-777.54,0.0002,2]
[315419993,1709022644235,-500.0,0.0002,2]
[315419994,1709022644243,-756.02,0.0002,2]
[315419995,1709022644252,-500.0,0.0002,2]
[315419996,1709022644263,-500.0,0.0002,2]
[315419997,1709022644272,-500.0,0.0002,2]
[315419998,1709022644281,-492.17596096,0.0002,2]
[315419999,1709022644290,-448.32673264,0.0002,2]
[315420000,1709022644299,-500.0,0.0002,2]
[315420001,1709022644309,-500.0,0.0002,2]
[315420002,1709022644318,-667672.77038392,0.0002,2]
[315420003,1709022644338,-2383.62670251,0.0002,2]
[315420004,1709022644386,-10210.19963456,0.0002,2]
[315420005,1709022644855,5000.0,0.000192,6]
[315420060,1709022645482,-183.00739845,0.00019097,2]
[315420062,1709022645492,-1115.42988837,0.00019178,2]
[315420067,1709022645523,-307.71011163,0.00019178,2]
[315420069,1709022645532,-500.0,0.00019178,2]
[315420071,1709022645541,-500.0,0.00019178,2]
[315420073,1709022645550,-1423.14,0.00019451,2]
[315420075,1709022645561,-1423.14,0.00019451,2]
[315420077,1709022645571,-1423.14,0.00019451,2]
[315420079,1709022645580,-500.0,0.00019452,2]
[315420081,1709022645590,-468.79,0.00019452,2]
[315420083,1709022645599,-1423.14,0.00019725,2]
[315420085,1709022645608,-1423.14,0.00019725,2]
[315420087,1709022645618,-1423.14,0.00019725,2]
[315420089,1709022645628,-500.0,0.00019726,2]
[315420091,1709022645637,-9121.08509914,0.0001999,3]
[315420161,1709022648727,-500.0,0.00019178,2]
[315420162,1709022648735,-500.0,0.00019178,2]
[315420163,1709022648745,-1298.49490086,0.0001999,3]
[315420164,1709022648754,-1423.14,0.00019999,2]
[315420165,1709022648764,-1423.14,0.00019999,2]
[315420166,1709022648773,-113526.46556861,0.0002,2]
[315420167,1709022650198,-487.07077658,0.00019177,2]
[315420171,1709022654598,5000.0,0.000192,6]
[315420172,1709022668084,5000.0,0.000192,6]
[315420173,1709022685831,5000.0,0.000192,6]
[315420174,1709022699042,2794.72030466,0.000192,6]
[315420272,1709023831880,-169.60667006,0.00018028,2]
[315420274,1709023831890,-2185.80794117,0.00018076,2]
[315420276,1709023831902,-5253.30965585,0.00018076,2]
[315420281,1709023831938,-1183.73518648,0.00018076,2]
[315420283,1709023831950,-5316.9525224,0.00018076,2]
[315420983,1709023839860,-776.37262367,0.00018076,2]
[315420985,1709023839873,-3904.87193971,0.00018076,2]
[315420991,1709023839924,-6278.95013072,0.00018076,2]
[315420993,1709023839933,-239.540183,0.0001811,2]
[315420994,1709023839942,-907.97057206,0.000188,2]
[315420996,1709023839952,-1187.33772109,0.000189,2]
[315420998,1709023839961,-933.91890744,0.00019078,2]
[315421000,1709023839970,-235.4847455,0.000191,2]
[315421002,1709023839979,-172.14135596,0.00019104,2]
[315421004,1709023839988,-568.35,0.00019168,3]
[315421006,1709023839997,-568.39,0.00019168,3]
[315421008,1709023840006,-260.43337929,0.00019176,2]
[315421009,1709023840016,-650.0889157,0.00019177,2]
[315421011,1709023840025,-1213.44386594,0.00019177,2]
[315421013,1709023840035,-1519.40144155,0.00019177,2]
[315421015,1709023840044,-500.0,0.00019177,2]
[315421017,1709023840053,-500.0,0.00019178,2]
[315421019,1709023840062,-500.0,0.00019178,2]
[315421021,1709023840071,-285.05808848,0.00019178,2]
[315421023,1709023840080,-505.06033528,0.00019178,2]
[315421025,1709023840089,-500.64514974,0.00019178,2]
[315421027,1709023840097,-509.88522936,0.00019178,2]
[315421028,1709023840106,-500.0,0.00019178,2]
[315421030,1709023840118,-748.09,0.00019178,2]
[315421032,1709023840128,-1214.01,0.00019178,2]
[315421034,1709023840137,-500.84804991,0.00019178,2]
[315421046,1709023840272,-500.0,0.00019178,2]
[315421048,1709023840281,-299.44952129,0.00019178,2]
[315421050,1709023840291,-506.51167982,0.00019178,2]
[315421052,1709023840300,-500.0,0.00019178,2]
[315421053,1709023840309,-500.65277545,0.00019178,2]
[315421055,1709023840320,-227.67643892,0.00019178,2]
[315421057,1709023840328,-500.0,0.00019178,2]
[315421059,1709023840338,-500.0,0.00019178,2]
[315421061,1709023840347,-500.0,0.00019178,2]
[315421063,1709023840356,-500.80767734,0.00019178,2]
[315421065,1709023840365,-500.0,0.00019178,2]
[315421067,1709023840374,-500.0,0.00019178,2]
[315421069,1709023840383,-500.0,0.00019178,2]
[315421070,1709023840393,-494.64072621,0.00019178,2]
[315421072,1709023840403,-573.44249112,0.00019178,2]
[315421074,1709023840412,-500.0,0.00019178,2]
[315421076,1709023840420,-500.0,0.00019178,2]
[315421078,1709023840430,-500.0,0.00019178,2]
[315421080,1709023840440,-500.0,0.00019178,2]
[315421082,1709023840449,-2424.64,0.00019178,2]
[315421084,1709023840457,-500.0,0.00019178,2]
[315421086,1709023840466,-500.0,0.00019178,2]
[315421088,1709023840475,-500.0,0.00019178,2]
[315421090,1709023840485,-790.38,0.00019178,2]
[315421092,1709023840495,-500.0,0.00019178,2]
[315421093,1709023840503,-583.2051723,0.00019178,2]
[315421095,1709023840512,-500.0,0.00019178,2]
[315421097,1709023840522,-500.0,0.00019178,2]
[315421099,1709023840531,-523.56834789,0.00019178,2]
[315421101,1709023840541,-501.62472493,0.00019178,2]
[315421103,1709023840550,-502.99389628,0.00019178,2]
[315421105,1709023840559,-500.0,0.00019178,2]
[315421107,1709023840569,-500.0,0.00019178,2]
[315421109,1709023840578,-500.0,0.00019178,2]
[315421111,1709023840587,-500.0,0.00019178,2]
[315421113,1709023840596,-502.13809935,0.00019178,2]
[315421114,1709023840605,-500.0,0.00019178,2]
[315421116,1709023840614,-500.0,0.00019178,2]
[315421118,1709023840623,-500.0,0.00019178,2]
[315421120,1709023840632,-500.0,0.00019178,2]
[315421122,1709023840643,-500.0,0.00019178,2]
[315421124,1709023840651,-500.0,0.00019178,2]
[315421125,1709023840661,-1278.36,0.00019178,2]
[315421127,1709023840670,-500.0,0.00019178,2]
[315421129,1709023840679,-501.36407866,0.00019178,2]
[315421131,1709023840688,-334.88546012,0.00019178,2]
[315421133,1709023840697,-401.70891154,0.00019178,2]
[315421135,1709023840706,-501.98121851,0.00019178,2]
[315421137,1709023840715,-500.0,0.00019178,2]
[315421139,1709023840724,-500.0,0.00019178,2]
[315421141,1709023840733,-500.0,0.00019178,2]
[315421143,1709023840742,-211.14111785,0.00019178,2]
[315421145,1709023840751,-162.83762222,0.00019178,2]
[315421146,1709023840760,-500.0,0.00019178,2]
[315421148,1709023840769,-502.22775455,0.00019178,2]
[315421150,1709023840778,-500.0,0.00019178,2]
[315421152,1709023840787,-500.0,0.00019178,2]
[315421154,1709023840799,-500.0,0.00019178,2]
[315421156,1709023840807,-500.0,0.00019178,2]
[315421157,1709023840817,-500.0,0.00019178,2]
[315421158,1709023840825,-1468.53,0.00019178,2]
[315421159,1709023840834,-500.0,0.00019178,2]
[315421160,1709023840844,-500.0,0.00019178,2]
[315421161,1709023840852,-500.0,0.00019178,2]
[315421162,1709023840861,-155.0,0.00019178,2]
[315421163,1709023840870,-500.0,0.00019178,2]
[315421164,1709023840880,-500.0,0.00019178,2]
[315421165,1709023840890,-500.0,0.00019178,2]
[315421166,1709023840899,-1638.43,0.00019178,2]
[315421167,1709023840908,-500.0,0.00019178,2]
[315421168,1709023840917,-500.0,0.00019178,2]
[315421169,1709023840926,-500.0,0.00019178,2]
[315421170,1709023840936,-500.0,0.00019178,2]
[315421171,1709023840945,-500.0,0.00019178,2]
[315421172,1709023840953,-500.0,0.00019178,2]
[315421173,1709023840962,-500.0,0.00019178,2]
[315421174,1709023840972,-500.0,0.00019178,2]
[315421175,1709023840980,-500.86552404,0.00019178,2]
[315421176,1709023840989,-500.0,0.00019178,2]
[315421177,1709023840999,-500.0,0.00019178,2]
[315421178,1709023841008,-451.77238634,0.00019178,2]
[315421179,1709023841017,-500.0,0.00019178,2]
[315421180,1709023841025,-500.0,0.00019178,2]
[315421181,1709023841034,-632.27431855,0.00019178,2]
[315421182,1709023841043,-500.0,0.00019178,2]
[315421184,1709023841052,-500.0,0.00019178,2]
[315421185,1709023841061,-1558.83,0.00019178,2]
[315421187,1709023841070,-500.0,0.00019178,2]
[315421189,1709023841079,-501.95643743,0.00019178,2]
[315421191,1709023841087,-501.83788764,0.00019178,2]
[315421193,1709023841098,-500.0,0.00019178,2]
[315421195,1709023841107,-500.0,0.00019178,2]
[315421197,1709023841118,-500.0,0.00019178,2]
[315421199,1709023841127,-1449.59,0.00019178,2]
[315421201,1709023841136,-500.0,0.00019178,2]
[315421203,1709023841148,-500.0,0.00019178,2]
[315421205,1709023841158,-501.378692,0.00019178,2]
[315421207,1709023841167,-500.0,0.00019178,2]
[315421209,1709023841178,-500.0,0.00019178,2]
[315421211,1709023841188,-500.0,0.00019178,2]
[315421213,1709023841197,-502.10295356,0.00019178,2]
[315421215,1709023841206,-710.28,0.00019178,2]
[315421216,1709023841217,-500.0,0.00019178,2]
[315421218,1709023841227,-500.0,0.00019178,2]
[315421220,1709023841237,-500.0,0.00019178,2]
[315421222,1709023841247,-500.0,0.00019178,2]
[315421224,1709023841256,-500.0,0.00019178,2]
[315421226,1709023841266,-500.0,0.00019178,2]
[315421228,1709023841276,-500.0,0.00019178,2]
[315421230,1709023841285,-500.0,0.00019178,2]
[315421232,1709023841294,-500.18571217,0.00019178,2]
[315421234,1709023841304,-921.5,0.00019178,2]
[315421236,1709023841313,-500.20544472,0.00019178,2]
[315421238,1709023841323,-500.0,0.00019178,2]
[315421240,1709023841332,-500.0,0.00019178,2]
[315421242,1709023841342,-500.0,0.00019178,2]
[315421244,1709023841351,-500.0,0.00019178,2]
[315421246,1709023841360,-500.0,0.00019178,2]
[315421248,1709023841370,-500.0,0.00019178,2]
[315421250,1709023841380,-500.0,0.00019178,2]
[315421252,1709023841390,-500.0,0.00019178,2]
[315421254,1709023841399,-500.0,0.00019178,2]
[315421256,1709023841409,-500.0,0.00019178,2]
[315421257,1709023841418,-500.0,0.00019178,2]
[315421259,1709023841428,-429.14374354,0.00019178,2]
[315421261,1709023841437,-500.0,0.00019178,2]
[315421263,1709023841446,-219.47365743,0.00019178,2]
[315421265,1709023841456,-665.42,0.00019178,2]
[315421267,1709023841465,-500.0,0.00019178,2]
[315421269,1709023841474,-562.14,0.00019178,2]
[315421271,1709023841483,-502.97392599,0.00019178,2]
[315421273,1709023841493,-698.08,0.00019178,2]
[315421275,1709023841502,-500.0,0.00019178,2]
[315421277,1709023841512,-171.31810075,0.00019178,2]
[315421279,1709023841521,-500.0,0.00019178,2]
[315421281,1709023841530,-3629.82,0.00019178,2]
[315421283,1709023841540,-1009.32,0.00019178,2]
[315421285,1709023841550,-268.55333724,0.00019178,2]
[315421287,1709023841559,-554.18861888,0.00019178,2]
[315421289,1709023841568,-500.57076762,0.00019178,2]
[315421291,1709023841577,-500.91730771,0.00019178,2]
[315421293,1709023841586,-500.0,0.00019178,2]
[315421295,1709023841596,-500.0,0.00019178,2]
[315421297,1709023841605,-730.83,0.00019178,2]